fUST/lending_fUST_20250223
["ID","MTS","AMOUNT","RATE_DAILY","PERIOD"]
[354135805,1740276642018,-332.02882842,0.00014832,2]
[354135806,1740276642028,-1297.81,0.00014832,2]
[354135807,1740276642038,-500.0,0.00014832,2]
[354135808,1740276642047,-500.0,0.00014832,2]
[354135809,1740276642057,-500.0,0.00014832,2]
[354135810,1740276642066,-500.0,0.00014832,2]
[354135811,1740276642076,-1707.46,0.00014832,2]
[354135812,1740276642086,-500.0,0.00014832,2]
[354135813,1740276642095,-500.0,0.00014832,2]
[354135814,1740276642104,-591.6,0.00014832,2]
[354135815,1740276642113,-500.0,0.00014832,2]
[354135816,1740276642122,-1141.47,0.00014832,2]
[354135817,1740276642132,-500.0,0.00014832,2]
[354135818,1740276642141,-500.0,0.00014832,2]
[354135819,1740276642151,-500.0,0.00014832,2]
[354135820,1740276642160,-166.6632514,0.00014832,2]
[354135821,1740276642170,-500.0,0.00014832,2]
[354135822,1740276642179,-642.88,0.00014832,2]
[354135823,1740276642190,-500.0,0.00014832,2]
[354135824,1740276642199,-500.0,0.00014832,2]
[354135825,1740276642210,-500.0,0.00014832,2]
[354135826,1740276642220,-500.0,0.00014832,2]
[354135827,1740276642229,-500.0,0.00014832,2]
[354135828,1740276642239,-500.0,0.00014832,2]
[354135829,1740276642248,-500.0,0.00014832,2]
[354135830,1740276642258,-500.0,0.00014832,2]
[354135831,1740276642268,-500.0,0.00014832,2]
[354135832,1740276642277,-500.0,0.00014832,2]
[354135833,1740276642287,-451.76195016,0.00014832,2]
[354135834,1740276642296,-500.0,0.00014832,2]
[354135835,1740276642305,-500.0,0.00014832,2]
[354135836,1740276642317,-500.0,0.00014832,2]
[354135837,1740276642326,-500.0,0.00014832,2]
[354135838,1740276642336,-500.0,0.00014832,2]
[354135839,1740276642345,-500.0,0.00014832,2]
[354135840,1740276642355,-500.0,0.00014832,2]
[354135841,1740276642365,-500.0,0.00014832,2]
[354135842,1740276642374,-500.0,0.00014832,2]
[354135843,1740276642384,-500.0,0.00014832,2]
[354135844,1740276642393,-500.0,0.00014832,2]
[354135845,1740276642403,-500.0,0.00014832,2]
[354135846,1740276642412,-500.0,0.00014832,2]
[354135847,1740276642424,-500.0,0.00014832,2]
[354135848,1740276642433,-500.0,0.00014832,2]
[354135849,1740276642443,-1109.39,0.00014832,2]
[354135850,1740276642453,-500.0,0.00014832,2]
[354135851,1740276642464,-3301.53,0.00014832,2]
[354135852,1740276642475,-500.0,0.00014832,2]
[354135853,1740276642484,-500.0,0.00014832,2]
[354135854,1740276642494,-500.0,0.00014832,2]
[354135855,1740276642504,-7185.97,0.00014832,2]
[354135856,1740276642514,-500.0,0.00014832,2]
[354135857,1740276642524,-500.0,0.00014832,2]
[354135858,1740276642533,-500.0,0.00014832,2]
[354135859,1740276642543,-318.61037545,0.00014832,2]
[354135860,1740276642552,-500.0,0.00014832,2]
[354135861,1740276642561,-505.63039037,0.00014832,2]
[354135862,1740276642571,-500.0,0.00014832,2]
[354135863,1740276642581,-2500.0,0.000149,2]
[354135864,1740276642590,-1628.79865643,0.000149,2]
[354135865,1740276642600,-4736.96066309,0.000149,2]
[354135866,1740276642611,-3205.29324375,0.000149,2]
[354135867,1740276642622,-3205.29324375,0.00014905,2]
[354135868,1740276642632,-505.22082809,0.00014915,2]
[354135869,1740276642642,-500.0,0.00014915,2]
[354135870,1740276642652,-313.18793951,0.00014915,2]
[354135871,1740276642662,-620.1044048,0.00014915,2]
[354135872,1740276642671,-500.0,0.00014915,2]
[354135873,1740276642681,-500.0,0.00014915,2]
[354135874,1740276642691,-500.0,0.00014915,2]
[354135875,1740276642701,-500.0,0.00014915,2]
[354135876,1740276642711,-500.0,0.00014915,2]
[354135877,1740276642721,-888.03,0.00014915,2]
[354135878,1740276642730,-500.0,0.00014915,2]
[354135879,1740276642740,-1297.81,0.00014915,2]
[354135880,1740276642749,-500.0,0.00014915,2]
[354135881,1740276642759,-500.0,0.00014915,2]
[354135882,1740276642768,-500.0,0.00014915,2]
[354135883,1740276642778,-500.0,0.00014915,2]
[354135884,1740276642788,-1707.46,0.00014915,2]
[354135885,1740276642797,-500.0,0.00014915,2]
[354135886,1740276642807,-500.0,0.00014915,2]
[354135887,1740276642816,-591.6,0.00014915,2]
[354135888,1740276642826,-500.0,0.00014915,2]
[354135889,1740276642835,-1141.47,0.00014915,2]
[354135890,1740276642845,-500.0,0.00014915,2]
[354135891,1740276642856,-500.0,0.00014915,2]
[354135892,1740276642865,-500.0,0.00014915,2]
[354135893,1740276642875,-500.0,0.00014915,2]
[354135894,1740276642884,-642.88,0.00014915,2]
[354135895,1740276642893,-500.0,0.00014915,2]
[354135896,1740276642902,-500.0,0.00014915,2]
[354135897,1740276642912,-434.85758015,0.00014915,2]
[354135898,1740276642921,-500.0,0.00014915,2]
[354135899,1740276642931,-500.0,0.00014915,2]
[354135900,1740276642941,-500.0,0.00014915,2]
[354135901,1740276642954,-500.0,0.00014915,2]
[354135902,1740276642969,-500.0,0.00014915,2]
[354135905,1740276642983,-500.0,0.00014915,2]
[354135907,1740276642996,-500.0,0.00014915,2]
[354135910,1740276643008,-581.07836283,0.00014915,2]
[354135913,1740276643019,-265.953402,0.00014915,2]
[354135916,1740276643030,-500.0,0.00014915,2]
[354135919,1740276643044,-500.0,0.00014915,2]
[354135922,1740276643056,-500.0,0.00014915,2]
[354135924,1740276643068,-500.0,0.00014915,2]
[354135927,1740276643082,-500.0,0.00014915,2]
[354135929,1740276643094,-500.0,0.00014915,2]
[354135931,1740276643105,-500.0,0.00014915,2]
[354135933,1740276643117,-500.0,0.00014915,2]
[354135935,1740276643128,-500.0,0.00014915,2]
[354135936,1740276643141,-185.16919088,0.00014915,2]
[354135937,1740276643154,-500.0,0.00014915,2]
[354135938,1740276643166,-500.0,0.00014915,2]
[354135940,1740276643178,-500.0,0.00014915,2]
[354135941,1740276643189,-1109.39,0.00014915,2]
[354135942,1740276643200,-500.0,0.00014915,2]
[354135943,1740276643213,-3301.53,0.00014915,2]
[354135944,1740276643225,-500.0,0.00014915,2]
[354135945,1740276643236,-500.0,0.00014915,2]
[354135947,1740276643248,-500.0,0.00014915,2]
[354135948,1740276643261,-7185.97,0.00014915,2]
[354135949,1740276643273,-500.0,0.00014915,2]
[354135950,1740276643284,-500.0,0.00014915,2]
[354135951,1740276643296,-500.0,0.00014915,2]
[354135952,1740276643307,-500.0,0.00014915,2]
[354135953,1740276643318,-500.0,0.00014915,2]
[354135954,1740276643328,-173.532,0.00014923,2]
[354135955,1740276643338,-500.0,0.00014973,2]
[354135956,1740276643350,-500.92782265,0.00014973,2]
[354135957,1740276643360,-500.0,0.00014973,2]
[354135958,1740276643373,-500.0,0.00014973,2]
[354135959,1740276643385,-509.04158611,0.00014973,2]
[354135961,1740276643396,-502.47157931,0.00014973,2]
[354135962,1740276643409,-500.0,0.00014973,2]
[354135963,1740276643423,-622.1309853,0.00014973,2]
[354135964,1740276643436,-500.0,0.00014973,2]
[354135965,1740276643448,-500.0,0.00014973,2]
[354135966,1740276643461,-171.12504259,0.00014973,2]
[354135967,1740276643473,-500.0,0.00014973,2]
[354135968,1740276643485,-500.0,0.00014973,2]
[354135969,1740276643499,-500.0,0.00014973,2]
[354135970,1740276643510,-500.0,0.00014973,2]
[354135971,1740276643520,-156.90533495,0.00014973,2]
[354135972,1740276643530,-251.51484246,0.00014973,2]
[354135973,1740276643540,-500.0,0.00014973,2]
[354135974,1740276643551,-500.0,0.00014973,2]
[354135975,1740276643562,-3205.29324375,0.00014978,2]
[354135976,1740276643573,-3205.29324375,0.00014987,2]
[354135977,1740276643587,-51284.6919,0.00014988,2]
[354135978,1740276643599,-500.0,0.00014997,2]
[354135979,1740276643612,-249.60907265,0.00014997,2]
[354135980,1740276643622,-500.0,0.00014997,2]
[354135981,1740276643632,-500.0,0.00014997,2]
[354135982,1740276643643,-500.0,0.00014997,2]
[354135983,1740276643654,-500.0,0.00014997,2]
[354135984,1740276643665,-500.0,0.00014997,2]
[354135985,1740276643677,-500.0,0.00014997,2]
[354135986,1740276643688,-888.03,0.00014997,2]
[354135987,1740276643699,-387.10845837,0.00014997,2]
[354135988,1740276643709,-321.26103113,0.00014997,2]
[354135989,1740276643720,-1297.81,0.00014997,2]
[354135990,1740276643730,-500.0,0.00014997,2]
[354135991,1740276643742,-500.0,0.00014997,2]
[354135992,1740276643753,-500.0,0.00014997,2]
[354135993,1740276643764,-500.0,0.00014997,2]
[354135994,1740276643774,-1707.46,0.00014997,2]
[354135995,1740276643785,-500.0,0.00014997,2]
[354135996,1740276643795,-500.0,0.00014997,2]
[354135997,1740276643806,-591.6,0.00014997,2]
[354135998,1740276643816,-500.0,0.00014997,2]
[354135999,1740276643828,-1141.47,0.00014997,2]
[354136000,1740276643838,-500.0,0.00014997,2]
[354136001,1740276643849,-500.0,0.00014997,2]
[354136002,1740276643860,-500.0,0.00014997,2]
[354136003,1740276643870,-500.0,0.00014997,2]
[354136004,1740276643883,-642.88,0.00014997,2]
[354136005,1740276643893,-500.0,0.00014997,2]
[354136006,1740276643903,-500.0,0.00014997,2]
[354136007,1740276643914,-500.0,0.00014997,2]
[354136008,1740276643925,-500.0,0.00014997,2]
[354136009,1740276643936,-500.0,0.00014997,2]
[354136010,1740276643947,-500.0,0.00014997,2]
[354136011,1740276643958,-500.0,0.00014997,2]
[354136012,1740276643969,-500.0,0.00014997,2]
[354136013,1740276643980,-500.0,0.00014997,2]
[354136014,1740276643990,-500.0,0.00014997,2]
[354136015,1740276644001,-500.0,0.00014997,2]
[354136016,1740276644012,-500.0,0.00014997,2]
[354136017,1740276644022,-500.0,0.00014997,2]
[354136018,1740276644033,-500.0,0.00014997,2]
[354136019,1740276644044,-500.0,0.00014997,2]
[354136020,1740276644055,-500.0,0.00014997,2]
[354136021,1740276644067,-500.0,0.00014997,2]
[354136022,1740276644077,-500.0,0.00014997,2]
[354136023,1740276644089,-500.0,0.00014997,2]
[354136024,1740276644100,-500.0,0.00014997,2]
[354136025,1740276644111,-500.0,0.00014997,2]
[354136026,1740276644122,-1109.39,0.00014997,2]
[354136027,1740276644133,-500.0,0.00014997,2]
[354136028,1740276644144,-3301.53,0.00014997,2]
[354136029,1740276644155,-500.0,0.00014997,2]
[354136030,1740276644166,-500.0,0.00014997,2]
[354136031,1740276644177,-500.0,0.00014997,2]
[354136032,1740276644310,-7185.97,0.00014997,2]
[354136033,1740276644322,-500.0,0.00014997,2]
[354136034,1740276644332,-500.0,0.00014997,2]
[354136035,1740276644342,-500.0,0.00014997,2]
[354136036,1740276644351,-500.0,0.00014997,2]
[354136037,1740276644361,-500.0,0.00014997,2]
[354136038,1740276644370,-5502.55281065,0.00014998,5]
[354136039,1740276644379,-2817.16706167,0.00014998,5]
[354136040,1740276644388,-376062.6064523,0.00014998,5]
[354136058,1740277498838,10000.0,0.00019,120]
[354136059,1740277516461,10000.0,0.00019,120]
[354136064,1740277616857,268.366625,9.041e-05,2]
[354136066,1740277720137,193.05266934,0.00018208,120]
[354136117,1740277832817,-500.0,0.00014164,2]
[354136118,1740277832827,-1482.29989501,0.0001471,2]
[354136120,1740277832838,-2887.26673487,0.0001471,2]
[354136121,1740277832941,-682.00345556,0.0001471,2]
[354136143,1740277838630,-380.26151072,0.0001471,2]
[354136144,1740277838642,-4999.9999994,0.0001471,2]
[354136145,1740277838682,-2493.06514878,0.0001471,2]
[354136146,1740277838694,-300.0,0.00014712,2]
[354136147,1740277838704,-816.18335133,0.00014749,5]
[354136148,1740277838715,-501.09617883,0.0001475,2]
[354136149,1740277838725,-500.0,0.0001475,2]
[354136150,1740277838734,-500.0,0.0001475,2]
[354136151,1740277838743,-500.62214267,0.0001475,2]
[354136152,1740277838752,-501.66863489,0.0001475,2]
[354136153,1740277838762,-500.0,0.0001475,2]
[354136154,1740277838883,-506.62146217,0.0001475,2]
[354136155,1740277838894,-205.05504291,0.0001475,2]
[354136156,1740277838903,-1021.24,0.0001475,2]
[354136157,1740277838912,-506.53864203,0.0001475,2]
[354136158,1740277838922,-507.01324555,0.0001475,2]
[354136159,1740277838931,-500.0,0.0001475,2]
[354136160,1740277838940,-503.99192514,0.0001475,2]
[354136161,1740277838949,-248.02358839,0.0001475,2]
[354136162,1740277838958,-506.02095595,0.0001475,2]
[354136163,1740277838967,-500.77788564,0.0001475,2]
[354136164,1740277838976,-505.70433469,0.0001475,2]
[354136165,1740277838985,-500.0,0.0001475,2]
[354136166,1740277838994,-500.0,0.0001475,2]
[354136167,1740277839003,-500.0,0.0001475,2]
[354136168,1740277839012,-500.0,0.0001475,2]
[354136169,1740277839021,-441.13814493,0.0001475,2]
[354136170,1740277839031,-502.24728244,0.0001475,2]
[354136171,1740277839042,-501.54931882,0.0001475,2]
[354136172,1740277839053,-501.64698672,0.0001475,2]
[354136173,1740277839062,-501.31269144,0.0001475,2]
[354136174,1740277839071,-502.42136159,0.0001475,2]
[354136175,1740277839080,-500.0,0.0001475,2]
[354136176,1740277839089,-502.40267554,0.0001475,2]
[354136177,1740277839100,-506.65408247,0.0001475,2]
[354136178,1740277839109,-503.60162829,0.0001475,2]
[354136179,1740277839118,-501.09743661,0.0001475,2]
[354136180,1740277839128,-282.58377536,0.0001475,2]
[354136181,1740277839142,-218.73859285,0.0001475,2]
[354136182,1740277839151,-503.46409696,0.0001475,2]
[354136183,1740277839161,-500.0,0.0001475,2]
[354136184,1740277839170,-501.96103588,0.0001475,2]
[354136185,1740277839179,-503.34996268,0.0001475,2]
[354136186,1740277839191,-491.36094624,0.0001475,2]
[354136187,1740277839202,-543.95247269,0.0001475,2]
[354136188,1740277839213,-500.0,0.0001475,2]
[354136189,1740277839222,-249.7413422,0.0001475,2]
[354136190,1740277839232,-500.91706768,0.0001475,2]
[354136191,1740277839249,-500.7678751,0.0001475,2]
[354136192,1740277839258,-500.0,0.0001475,2]
[354136193,1740277839268,-501.85936752,0.0001475,2]
[354136194,1740277839278,-500.0,0.0001475,2]
[354136195,1740277839288,-501.64949788,0.0001475,2]
[354136196,1740277839297,-500.0,0.0001475,2]
[354136197,1740277839309,-565.3671985,0.0001475,2]
[354136198,1740277839324,-500.9397574,0.0001475,2]
[354136199,1740277839337,-501.82738834,0.0001475,2]
[354136200,1740277839347,-500.0,0.0001475,2]
[354136201,1740277839357,-502.01451694,0.0001475,2]
[354136202,1740277839367,-514.53238757,0.0001475,2]
[354136203,1740277839377,-500.0,0.0001475,2]
[354136204,1740277839388,-500.0,0.0001475,2]
[354136205,1740277839398,-503.34043483,0.0001475,2]
[354136206,1740277839408,-500.0,0.0001475,2]
[354136207,1740277839419,-314.91323346,0.0001475,2]
[354136208,1740277839428,-500.0,0.0001475,2]
[354136209,1740277839437,-500.0,0.0001475,2]
[354136210,1740277839448,-500.0,0.0001475,2]
[354136211,1740277839457,-500.0,0.0001475,2]
[354136212,1740277839466,-500.6873793,0.0001475,2]
[354136213,1740277839475,-500.0,0.0001475,2]
[354136214,1740277839484,-505.38285868,0.0001475,2]
[354136215,1740277839493,-504.65862442,0.0001475,2]
[354136216,1740277839502,-500.0,0.0001475,2]
[354136217,1740277839512,-500.0,0.0001475,2]
[354136218,1740277839521,-503.48086526,0.0001475,2]
[354136219,1740277839530,-500.0,0.0001475,2]
[354136220,1740277839539,-502.47097467,0.0001475,2]
[354136221,1740277839548,-501.11236414,0.0001475,2]
[354136222,1740277839557,-500.0,0.0001475,2]
[354136223,1740277839566,-502.30288957,0.0001475,2]
[354136224,1740277839575,-507.51701629,0.0001475,2]
[354136225,1740277839587,-500.0,0.0001475,2]
[354136226,1740277839597,-500.0,0.0001475,2]
[354136227,1740277839607,-502.14723164,0.0001475,2]
[354136228,1740277839616,-500.0,0.0001475,2]
[354136229,1740277839625,-505.68291952,0.0001475,2]
[354136230,1740277839635,-490.0,0.0001475,2]
[354136231,1740277839645,-500.0,0.0001475,2]
[354136232,1740277839655,-500.0,0.0001475,2]
[354136233,1740277839666,-500.0,0.0001475,2]
[354136234,1740277839677,-500.0,0.0001475,2]
[354136235,1740277839686,-500.0,0.0001475,2]
[354136236,1740277839696,-500.0,0.0001475,2]
[354136237,1740277839705,-500.0,0.0001475,2]
[354136238,1740277839714,-500.0,0.0001475,2]
[354136239,1740277839723,-500.0,0.0001475,2]
[354136240,1740277839732,-500.0,0.0001475,2]
[354136241,1740277839741,-500.0,0.0001475,2]
[354136242,1740277839750,-500.0,0.0001475,2]
[354136243,1740277839759,-503.60169818,0.0001475,2]
[354136244,1740277839768,-500.0,0.0001475,2]
[354136245,1740277839777,-500.0,0.0001475,2]
[354136246,1740277839787,-500.0,0.0001475,2]
[354136247,1740277839796,-500.0,0.0001475,2]
[354136248,1740277839804,-500.0,0.0001475,2]
[354136249,1740277839814,-558.48,0.0001475,2]
[354136250,1740277839823,-500.0,0.0001475,2]
[354136251,1740277839833,-500.0,0.0001475,2]
[354136252,1740277839842,-500.0,0.0001475,2]
[354136253,1740277839852,-500.0,0.0001475,2]
[354136254,1740277839861,-707.94,0.0001475,2]
[354136255,1740277839870,-1802.57,0.0001475,2]
[354136256,1740277839883,-1369.84,0.0001475,2]
[354136257,1740277839892,-500.0,0.0001475,2]
[354136258,1740277839902,-500.0,0.0001475,2]
[354136259,1740277839911,-500.0,0.0001475,2]
[354136260,1740277839922,-506.56279409,0.0001475,2]
[354136261,1740277839931,-500.0,0.0001475,2]
[354136262,1740277839940,-504.80528804,0.0001475,2]
[354136263,1740277839949,-737.59,0.0001475,2]
[354136264,1740277839959,-500.0,0.0001475,2]
[354136265,1740277839969,-500.0,0.0001475,2]
[354136266,1740277839979,-500.0,0.0001475,2]
[354136267,1740277839988,-505.26916539,0.0001475,2]
[354136268,1740277839997,-522.16471682,0.0001475,2]
[354136269,1740277840005,-500.0,0.0001475,2]
[354136270,1740277840015,-523.5,0.0001475,2]
[354136271,1740277840024,-500.0,0.0001475,2]
[354136272,1740277840033,-500.0,0.0001475,2]
[354136273,1740277840043,-500.0,0.0001475,2]
[354136274,1740277840052,-504.35300757,0.0001475,2]
[354136275,1740277840062,-500.0,0.0001475,2]
[354136276,1740277840071,-500.0,0.0001475,2]
[354136277,1740277840080,-500.0,0.0001475,2]
[354136278,1740277840090,-501.99228002,0.0001475,2]
[354136279,1740277840100,-500.0,0.0001475,2]
[354136280,1740277840109,-505.04264449,0.0001475,2]
[354136281,1740277840117,-500.0,0.0001475,2]
[354136282,1740277840127,-500.0,0.0001475,2]
[354136283,1740277840136,-505.08362711,0.0001475,2]
[354136284,1740277840145,-500.0,0.0001475,2]
[354136285,1740277840155,-500.0,0.0001475,2]
[354136286,1740277840164,-500.0,0.0001475,2]
[354136287,1740277840172,-546.94,0.0001475,2]
[354136288,1740277840182,-500.0,0.0001475,2]
[354136289,1740277840191,-1263.98,0.0001475,2]
[354136290,1740277840200,-500.0,0.0001475,2]
[354136291,1740277840209,-500.0,0.0001475,2]
[354136292,1740277840218,-500.0,0.0001475,2]
[354136293,1740277840228,-506.85636193,0.0001475,2]
[354136294,1740277840237,-500.0,0.0001475,2]
[354136295,1740277840247,-500.0,0.0001475,2]
[354136296,1740277840256,-507.17420417,0.0001475,2]
[354136297,1740277840266,-3789.07,0.0001475,2]
[354136298,1740277840275,-500.0,0.0001475,2]
[354136299,1740277840284,-500.0,0.0001475,2]
[354136300,1740277840294,-500.0,0.0001475,2]
[354136301,1740277840303,-501.10947771,0.0001475,2]
[354136302,1740277840312,-500.0,0.0001475,2]
[354136303,1740277840322,-8225.4,0.0001475,2]
[354136304,1740277840331,-1573.96,0.0001475,2]
[354136305,1740277840341,-10077.33684627,0.00014778,2]
[354136306,1740277840355,-3202.20904296,0.00014778,2]
[354136307,1740277840364,-500.0,0.00014832,2]
[354136308,1740277840373,-1021.24,0.00014832,2]
[354136309,1740277840382,-500.0,0.00014832,2]
[354136310,1740277840391,-318.61037545,0.00014832,2]
[354136311,1740277840401,-500.0,0.00014832,2]
[354136312,1740277840410,-500.0,0.00014832,2]
[354136313,1740277840419,-500.0,0.00014832,2]
[354136314,1740277840428,-500.0,0.00014832,2]
[354136315,1740277840438,-500.0,0.00014832,2]
[354136316,1740277840447,-500.0,0.00014832,2]
[354136317,1740277840456,-506.10567364,0.00014832,2]
[354136318,1740277840465,-109.3614003,0.00014832,2]
[354136328,1740277841111,-500.0,0.0001475,2]
[354136329,1740277841122,-500.43480581,0.0001475,2]
[354136330,1740277841132,-390.6385997,0.00014832,2]
[354136331,1740277841142,-500.0,0.00014832,2]
[354136332,1740277841151,-500.0,0.00014832,2]
[354136333,1740277841161,-500.0,0.00014832,2]
[354136334,1740277841170,-511.17225183,0.00014832,2]
[354136335,1740277841180,-500.0,0.00014832,2]
[354136336,1740277841189,-500.0,0.00014832,2]
[354136337,1740277841199,-500.0,0.00014832,2]
[354136338,1740277841209,-500.0,0.00014832,2]
[354136339,1740277841218,-500.0,0.00014832,2]
[354136340,1740277841227,-500.0,0.00014832,2]
[354136341,1740277841237,-500.0,0.00014832,2]
[354136342,1740277841247,-500.0,0.00014832,2]
[354136343,1740277841256,-500.0,0.00014832,2]
[354136344,1740277841266,-500.0,0.00014832,2]
[354136345,1740277841275,-500.0,0.00014832,2]
[354136346,1740277841285,-500.0,0.00014832,2]
[354136347,1740277841295,-505.95261387,0.00014832,2]
[354136348,1740277841305,-500.0,0.00014832,2]
[354136349,1740277841314,-500.0,0.00014832,2]
[354136350,1740277841323,-500.0,0.00014832,2]
[354136351,1740277841333,-511.24417759,0.00014832,2]
[354136352,1740277841343,-500.0,0.00014832,2]
[354136353,1740277841352,-500.0,0.00014832,2]
[354136354,1740277841362,-500.0,0.00014832,2]
[354136355,1740277841371,-500.0,0.00014832,2]
[354136356,1740277841380,-500.0,0.00014832,2]
[354136357,1740277841390,-500.0,0.00014832,2]
[354136358,1740277841399,-500.0,0.00014832,2]
[354136359,1740277841409,-500.0,0.00014832,2]
[354136360,1740277841418,-505.07484295,0.00014832,2]
[354136361,1740277841427,-500.0,0.00014832,2]
[354136362,1740277841437,-500.0,0.00014832,2]
[354136363,1740277841447,-558.48,0.00014832,2]
[354136364,1740277841456,-500.0,0.00014832,2]
[354136365,1740277841466,-500.0,0.00014832,2]
[354136366,1740277841475,-500.0,0.00014832,2]
[354136367,1740277841484,-500.0,0.00014832,2]
[354136368,1740277841493,-707.94,0.00014832,2]
[354136369,1740277841503,-1802.57,0.00014832,2]
[354136370,1740277841512,-1369.84,0.00014832,2]
[354136371,1740277841521,-500.0,0.00014832,2]
[354136372,1740277841531,-500.0,0.00014832,2]
[354136373,1740277841540,-500.0,0.00014832,2]
[354136374,1740277841550,-500.0,0.00014832,2]
[354136375,1740277841559,-737.59,0.00014832,2]
[354136376,1740277841568,-500.0,0.00014832,2]
[354136377,1740277841577,-500.0,0.00014832,2]
[354136378,1740277841586,-500.0,0.00014832,2]
[354136379,1740277841604,-500.0,0.00014832,2]
[354136380,1740277841615,-523.5,0.00014832,2]
[354136381,1740277841624,-500.0,0.00014832,2]
[354136382,1740277841634,-500.0,0.00014832,2]
[354136383,1740277841644,-500.0,0.00014832,2]
[354136384,1740277841653,-500.0,0.00014832,2]
[354136385,1740277841662,-500.0,0.00014832,2]
[354136386,1740277841798,-500.0,0.00014832,2]
[354136387,1740277841808,-500.0,0.00014832,2]
[354136388,1740277841817,-500.0,0.00014832,2]
[354136389,1740277841826,-500.0,0.00014832,2]
[354136390,1740277841835,-500.0,0.00014832,2]
[354136391,1740277841845,-500.0,0.00014832,2]
[354136392,1740277841854,-500.0,0.00014832,2]
[354136393,1740277841863,-546.94,0.00014832,2]
[354136394,1740277841872,-500.0,0.00014832,2]
[354136395,1740277841884,-1263.98,0.00014832,2]
[354136396,1740277841893,-514.08180151,0.00014832,2]
[354136397,1740277841902,-500.0,0.00014832,2]
[354136398,1740277841911,-500.0,0.00014832,2]
[354136399,1740277841920,-500.0,0.00014832,2]
[354136400,1740277841930,-500.0,0.00014832,2]
[354136401,1740277841940,-3789.07,0.00014832,2]
[354136402,1740277841949,-500.0,0.00014832,2]
[354136403,1740277841961,-500.0,0.00014832,2]
[354136404,1740277841971,-500.0,0.00014832,2]
[354136405,1740277841980,-500.0,0.00014832,2]
[354136406,1740277841989,-8225.4,0.00014832,2]
[354136407,1740277841999,-1573.96,0.00014832,2]
[354136408,1740277842008,-500.0,0.00014832,2]
[354136409,1740277842018,-4736.96066309,0.00014898,2]
[354136410,1740277842028,-2500.0,0.000149,2]
[354136411,1740277842038,-1628.79865643,0.000149,2]
[354136412,1740277842048,-500.0,0.00014915,2]
[354136413,1740277842058,-1021.24,0.00014915,2]
[354136414,1740277842067,-500.0,0.00014915,2]
[354136415,1740277842077,-500.0,0.00014915,2]
[354136416,1740277842086,-500.0,0.00014915,2]
[354136417,1740277842095,-500.0,0.00014915,2]
[354136418,1740277842105,-500.0,0.00014915,2]
[354136419,1740277842114,-500.0,0.00014915,2]
[354136420,1740277842123,-500.0,0.00014915,2]
[354136421,1740277842133,-505.46135817,0.00014915,2]
[354136422,1740277842142,-500.0,0.00014915,2]
[354136423,1740277842151,-500.0,0.00014915,2]
[354136424,1740277842160,-500.0,0.00014915,2]
[354136425,1740277842169,-500.0,0.00014915,2]
[354136426,1740277842179,-500.0,0.00014915,2]
[354136427,1740277842188,-500.0,0.00014915,2]
[354136428,1740277842197,-500.0,0.00014915,2]
[354136429,1740277842206,-500.0,0.00014915,2]
[354136430,1740277842215,-500.0,0.00014915,2]